[Event "Moscow Open RSSU Cup 2019"]
[Site "Moscow"]
[Date "2019.01.26"]
[Round "1"]
[White "Timofeev, Artyom"]
[Black "Selivanov, Ivan"]
[Result "1-0"]
[ECO "C77"]
[WhiteElo "2592"]
[BlackElo "2260"]
[Annotator "RC"]
[PlyCount "69"]
[EventDate "2019.01.26"]
[EventType "swiss"]
[EventCountry "RUS"]
[SourceTitle "playchess.com"]
[Source "ChessBase"]
[SourceQuality "1"]
[TimeControl "40/5400+30:1800+30"]

1. e4 {[%emt 0:00:00]} e5 {[%emt 0:01:10]} 2. Nf3 {[%emt 0:00:00]} Nc6 {[%emt 0:00:05]} 3. Bb5 {[%emt 0:00:58]} a6 {[%emt 0:00:14]} 4. Ba4 {[%emt 0:00:06]} Nf6 {[%emt 0:00:09]} 5. d3 {[%emt 0:00:13]} d6 {[%emt 0:02:12]} 6. c3 {[%emt 0:00:30]} g6 {[%emt 0:08:35]} 7. Nbd2 {[%emt 0:03:27]} Bg7 {[%emt 0:00:33]} 8. Nf1 {[%emt 0:00:08]} Nh5 {[%emt 0:08:59]} 9. Bg5 {[%emt 0:03:50]} f6 {[%emt 0:07:36]} 10. Be3 {[%emt 0:00:33]} f5 {[%emt 0:06:22]} 11. Ng3 {[%emt 0:07:27]} Nf4 {[%emt 0:11:36]} 12. O-O {[%emt 0:03:18]} fxe4 {[%emt 0:19:24]} 13. dxe4 {[%emt 0:02:47]} O-O {[%emt 0:00:46]} 14. Bxf4 {[%emt 0:01:27]} exf4 {[%emt 0:02:21]} 15. Ne2 {[%emt 0:00:08]} Kh8 {[%emt 0:04:30]} 16. h3 {[%emt 0:02:18]} b5 {[%emt 0:06:47]} 17. Bb3 {[%emt 0:00:42]} Na5 {[%emt 0:01:04]} 18. Ned4 {[%emt 0:08:23]} Qe7 {[%emt 0:08:50]} 19. Bd5 {[%emt 0:01:59]} Bb7 {[%emt 0:00:39]} 20. a4 {[%emt 0:03:44]} c6 {[%emt 0:02:22]} 21. Ba2 {[%emt 0:00:07]} Nc4 {[%emt 0:00:52]} 22. axb5 {[%emt 0:00:33]} axb5 {[%emt 0:01:37]} 23. Qe2 {[%emt 0:04:27]} Rfe8 {[%emt 0:04:02]} 24. Ne6 {[%emt 0:00:30]} Bh6 {[%emt 0:00:30]} 25. Bb3 {[%emt 0:05:52]} Nb6 26. Rxa8 {[%emt 0:01:23]} Bxa8 {[%emt 0:00:35]} 27. Ra1 {[%emt 0:00:54]} Na4 {[%emt 0:01:06]} 28. e5 {[%emt 0:03:45]} d5 {[%emt 0:00:22]} 29. Ned4 {[%emt 0:00:05]} Nc5 {[%emt 0:00:25]} 30. Bc2 {[%emt 0:00:17]} Bg7 {[%emt 0:00:45]} 31. b4 {[%emt 0:00:28]} Ne6 {[%emt 0:00:28]} 32. Nxe6 {[%emt 0:00:53]} Qxe6 {[%emt 0:00:05]} 33. Ra7 {[%emt 0:00:04]} h6 {[%emt 0:00:42]} 34. Nh4 {[%emt 0:01:57]} g5 {[%emt 0:00:04]} 35. Qd3 {[%emt 0:00:08]} 1-0

[Event "Moscow Open RSSU Cup 2019"]
[Site "Moscow"]
[Date "2019.01.26"]
[Round "1"]
[White "Tsydypov, Zhamsaran"]
[Black "Shoboev, Dandar"]
[Result "1-0"]
[ECO "C42"]
[WhiteElo "2545"]
[BlackElo "2245"]
[Annotator "RC"]
[PlyCount "89"]
[EventDate "2019.01.26"]
[EventType "swiss"]
[EventCountry "RUS"]
[SourceTitle "playchess.com"]
[Source "ChessBase"]
[SourceQuality "1"]
[TimeControl "40/5400+30:1800+30"]

1. e4 {[%emt 0:04:20]} e5 {[%emt 0:00:00]} 2. Nf3 {[%emt 0:00:22]} Nf6 {[%emt 0:00:13]} 3. Nxe5 {[%emt 0:00:26]} d6 {[%emt 0:00:10]} 4. Nf3 {[%emt 0:00:57]} Nxe4 {[%emt 0:00:07]} 5. Qe2 {[%emt 0:01:14]} Qe7 {[%emt 0:00:12]} 6. d3 {[%emt 0:00:05]} Nf6 {[%emt 0:00:24]} 7. Bg5 {[%emt 0:00:07]} Qxe2+ {[%emt 0:02:23]} 8. Bxe2 {[%emt 0:00:05]} Be7 {[%emt 0:00:05]} 9. Nc3 {[%emt 0:00:12]} h6 {[%emt 0:00:42]} 10. Bf4 {[%emt 0:01:14]} c6 {[%emt 0:06:27]} 11. h3 {[%emt 0:07:25]} d5 {[%emt 0:01:59]} 12. O-O-O {[%emt 0:01:18]} Nbd7 {[%emt 0:03:41]} 13. Nd4 {[%emt 0:00:42]} Nf8 {[%emt 0:03:29]} 14. Rhe1 {[%emt 0:04:44]} Ng6 {[%emt 0:00:11]} 15. Bh2 {[%emt 0:08:15]} O-O {[%emt 0:00:37]} 16. Nb3 {[%emt 0:00:21]} Re8 {[%emt 0:01:17]} 17. d4 {[%emt 0:00:45]} Bd7 {[%emt 0:02:43]} 18. Nc5 {[%emt 0:04:57]} b5 {[%emt 0:20:54]} 19. Bd3 {[%emt 0:20:26]} Nf8 {[%emt 0:16:39]} 20. Be5 {[%emt 0:08:00]} a5 {[%emt 0:10:10]} 21. a3 {[%emt 0:04:33]} Be6 22. f4 {[%emt 0:01:27]} N6d7 {[%emt 0:08:37]} 23. b4 {[%emt 0:06:46]} axb4 {[%emt 0:00:42]} 24. axb4 {[%emt 0:00:02]} Nxe5 {[%emt 0:01:17]} 25. fxe5 {[%emt 0:00:05]} Nd7 {[%emt 0:01:28]} 26. Kb2 {[%emt 0:02:16]} Nxc5 {[%emt 0:00:43]} 27. bxc5 {[%emt 0:00:36]} Bg5 {[%emt 0:02:06]} 28. Na2 {[%emt 0:01:08]} Ra4 {[%emt 0:04:28]} 29. c3 {[%emt 0:00:30]} Rea8 {[%emt 0:00:18]} 30. Nb4 {[%emt 0:00:24]} Bd7 {[%emt 0:00:13]} 31. Rf1 {[%emt 0:03:39]} R4a7 {[%emt 0:05:40]} 32. Bf5 {[%emt 0:02:40]} Be8 {[%emt 0:00:52]} 33. e6 {[%emt 0:01:32]} Bf6 {[%emt 0:04:42]} 34. exf7+ {[%emt 0:04:37]} Kxf7 {[%emt 0:00:04]} 35. Rde1 {[%emt 0:00:32]} Re7 {[%emt 0:01:01]} 36. Rxe7+ {[%emt 0:00:54]} Kxe7 {[%emt 0:00:03]} 37. Re1+ Kd8 {[%emt 0:02:12]} 38. Rxe8+ {[%emt 0:03:05]} Kxe8 {[%emt 0:00:04]} 39. Nxc6 {[%emt 0:00:04]} Kf7 {[%emt 0:01:10]} 40. Nb4 {[%emt 0:00:00]} Bd8 {[%emt 0:00:00]} 41. Bd7 {[%emt 0:08:02]} Ba5 {[%emt 0:14:17]} 42. Nxd5 {[%emt 0:00:55]} Rb8 {[%emt 0:00:28]} 43. c6 {[%emt 0:02:58]} Ra8 {[%emt 0:00:22]} 44. c7 {[%emt 0:00:31]} Bxc7 {[%emt 0:00:23]} 45. Be6+ {[%emt 0:00:05]} 1-0

[Event "Moscow Open RSSU Cup 2019"]
[Site "Moscow"]
[Date "2019.01.26"]
[Round "1"]
[White "Navrodskiy, Boris"]
[Black "Kryakvin, Dmitry"]
[Result "0-1"]
[ECO "E94"]
[WhiteElo "2254"]
[BlackElo "2588"]
[Annotator "ChessBase"]
[PlyCount "78"]
[EventDate "2019.01.26"]
[EventType "swiss"]
[EventCountry "RUS"]
[SourceTitle "playchess.com"]
[Source "ChessBase"]
[SourceQuality "1"]
[TimeControl "40/5400+30:1800+30"]

1. d4 {[%emt 0:13:06]} Nf6 {[%emt 0:00:00]} 2. c4 {[%emt 0:00:04]} g6 {[%emt 0:00:00]} 3. Nc3 {[%emt 0:00:05]} Bg7 {[%emt 0:00:00]} 4. e4 {[%emt 0:00:03]} d6 {[%emt 0:00:00]} 5. Nf3 {[%emt 0:00:05]} O-O {[%emt 0:00:05]} 6. Be2 {[%emt 0:00:03]} e5 {[%emt 0:00:06]} 7. O-O {[%emt 0:00:06]} Na6 {[%emt 0:00:07]} 8. Re1 {[%emt 0:00:08]} c6 {[%emt 0:00:05]} 9. Bf1 {[%emt 0:03:21]} Bg4 {[%emt 0:00:51]} 10. d5 {[%emt 0:00:38]} c5 {[%emt 0:00:07]} 11. h3 {[%emt 0:03:58]} Bd7 {[%emt 0:00:41]} 12. Be3 {[%emt 0:01:30]} Kh8 {[%emt 0:01:09]} 13. Qd2 {[%emt 0:02:56]} Ng8 {[%emt 0:02:55]} 14. Bg5 {[%emt 0:01:51]} f6 {[%emt 0:06:28]} 15. Bh4 {[%emt 0:00:06]} Bh6 {[%emt 0:00:23]} 16. Qd1 {[%emt 0:05:06]} Bf4 {[%emt 0:00:41]} 17. Ne2 {[%emt 0:08:38]} g5 {[%emt 0:06:14]} 18. g3 {[%emt 0:00:50]} gxh4 {[%emt 0:05:19]} 19. gxf4 {[%emt 0:00:06]} Qe8 {[%emt 0:04:52]} 20. f5 {[%emt 0:02:38]} Qh5 {[%emt 0:05:50]} 21. Nc3 {[%emt 0:03:21]} Nh6 {[%emt 0:01:40]} 22. Kh1 {[%emt 0:02:59]} Rg8 {[%emt 0:10:05]} 23. Be2 {[%emt 0:01:31]} Nxf5 {[%emt 0:20:16]} 24. exf5 {[%emt 0:03:10]} Qxf5 {[%emt 0:00:49]} 25. Bf1 {[%emt 0:00:55]} Qg6 {[%emt 0:00:20]} 26. a3 {[%emt 0:14:01]} Bf5 27. Qd2 {[%emt 0:05:11]} e4 {[%emt 0:06:12]} 28. Qf4 {[%emt 0:00:09]} exf3 {[%emt 0:01:30]} 29. Qh2 {[%emt 0:00:02]} Rg7 {[%emt 0:07:33]} 30. Nb5 {[%emt 0:07:32]} Rd8 {[%emt 0:00:37]} 31. Re3 {[%emt 0:00:09]} Nc7 {[%emt 0:01:36]} 32. Nc3 {[%emt 0:03:23]} Re8 {[%emt 0:00:51]} 33. Rae1 {[%emt 0:00:44]} Re5 {[%emt 0:00:15]} 34. b4 {[%emt 0:00:44]} b6 {[%emt 0:00:28]} 35. bxc5 {[%emt 0:04:50]} bxc5 {[%emt 0:00:11]} 36. a4 {[%emt 0:02:26]} a6 {[%emt 0:00:35]} 37. a5 {[%emt 0:00:33]} Ne8 {[%emt 0:00:47]} 38. Na4 {[%emt 0:00:37]} Be4 {[%emt 0:03:04]} 39. Nb2 {[%emt 0:00:28]} Rg5 {[%emt 0:01:40]} 0-1

[Event "Moscow Open RSSU Cup 2019"]
[Site "Moscow"]
[Date "2019.01.26"]
[Round "1"]
[White "Mnatsakanian, Arsen"]
[Black "Savchenko, Boris"]
[Result "1-0"]
[ECO "B06"]
[WhiteElo "2252"]
[BlackElo "2562"]
[Annotator "ChessBase"]
[PlyCount "75"]
[EventDate "2019.01.26"]
[EventType "swiss"]
[EventCountry "RUS"]
[SourceTitle "playchess.com"]
[Source "ChessBase"]
[SourceQuality "1"]
[TimeControl "40/5400+30:1800+30"]

1. e4 g6 {[%emt 0:08:12]} 2. d4 {[%emt 0:01:15]} Bg7 {[%emt 0:03:32]} 3. Nf3 {[%emt 0:00:08]} d6 {[%emt 0:00:14]} 4. Bd3 {[%emt 0:03:57]} c5 {[%emt 0:02:05]} 5. dxc5 {[%emt 0:01:19]} Qa5+ {[%emt 0:00:22]} 6. c3 {[%emt 0:00:10]} Qxc5 {[%emt 0:00:10]} 7. Be3 {[%emt 0:00:26]} Qc7 {[%emt 0:00:11]} 8. O-O {[%emt 0:01:32]} Nc6 {[%emt 0:00:33]} 9. h3 {[%emt 0:08:28]} Nf6 {[%emt 0:00:14]} 10. Nbd2 {[%emt 0:00:05]} d5 {[%emt 0:01:21]} 11. Bg5 {[%emt 0:04:15]} Be6 {[%emt 0:02:51]} 12. Qa4 {[%emt 0:06:15]} O-O {[%emt 0:01:22]} 13. Bb5 {[%emt 0:08:50]} h6 {[%emt 0:09:46]} 14. Be3 {[%emt 0:10:24]} dxe4 {[%emt 0:10:12]} 15. Nxe4 {[%emt 0:00:04]} Nd5 {[%emt 0:00:10]} 16. Nc5 {[%emt 0:08:32]} Bf5 {[%emt 0:15:53]} 17. Bxc6 {[%emt 0:04:25]} Nxe3 {[%emt 0:04:29]} 18. fxe3 {[%emt 0:03:32]} bxc6 {[%emt 0:00:14]} 19. Qc4 {[%emt 0:12:31]} Rad8 20. Kh1 {[%emt 0:02:48]} Qc8 {[%emt 0:14:21]} 21. e4 {[%emt 0:05:18]} Bd7 {[%emt 0:03:06]} 22. Rad1 {[%emt 0:01:18]} Be8 {[%emt 0:03:58]} 23. Qa4 {[%emt 0:01:45]} Rxd1 {[%emt 0:03:57]} 24. Rxd1 {[%emt 0:00:03]} f5 {[%emt 0:00:12]} 25. e5 {[%emt 0:02:55]} Bf7 {[%emt 0:05:12]} 26. Rd7 {[%emt 0:00:50]} Rd8 {[%emt 0:04:06]} 27. e6 {[%emt 0:00:12]} Be8 {[%emt 0:00:11]} 28. Qxa7 {[%emt 0:00:36]} Qb8 {[%emt 0:04:50]} 29. Qxb8 {[%emt 0:00:58]} Rxb8 {[%emt 0:00:05]} 30. Rb7 {[%emt 0:01:41]} Rd8 {[%emt 0:00:07]} 31. a4 {[%emt 0:01:13]} Rd5 {[%emt 0:01:45]} 32. Rb8 {[%emt 0:01:20]} Rxc5 {[%emt 0:00:07]} 33. Rxe8+ {[%emt 0:00:04]} Bf8 {[%emt 0:00:06]} 34. Ra8 {[%emt 0:00:25]} Kg7 {[%emt 0:00:07]} 35. a5 {[%emt 0:00:15]} Rb5 {[%emt 0:00:05]} 36. a6 {[%emt 0:00:35]} Rxb2 {[%emt 0:00:05]} 37. a7 {[%emt 0:00:07]} Ra2 {[%emt 0:00:05]} 38. Nd4 1-0

[Event "Moscow Open RSSU Cup 2019"]
[Site "Moscow"]
[Date "2019.01.26"]
[Round "1"]
[White "Utiatskaja, Irina"]
[Black "Mozharov, Mikhail"]
[Result "0-1"]
[ECO "B15"]
[WhiteElo "2246"]
[BlackElo "2549"]
[Annotator "RC"]
[PlyCount "82"]
[EventDate "2019.01.26"]
[EventType "swiss"]
[EventCountry "RUS"]
[SourceTitle "playchess.com"]
[Source "ChessBase"]
[SourceQuality "1"]
[TimeControl "40/5400+30:1800+30"]

1. e4 {[%emt 0:06:24]} c6 {[%emt 0:00:00]} 2. d4 {[%emt 0:00:19]} d5 {[%emt 0:00:00]} 3. Nd2 {[%emt 0:00:23]} dxe4 {[%emt 0:00:25]} 4. Nxe4 {[%emt 0:00:27]} Nf6 {[%emt 0:00:15]} 5. Nxf6+ {[%emt 0:00:26]} exf6 {[%emt 0:00:18]} 6. c3 {[%emt 0:03:20]} Bd6 {[%emt 0:00:39]} 7. Bd3 {[%emt 0:00:55]} O-O {[%emt 0:00:09]} 8. Qc2 {[%emt 0:00:44]} Re8+ {[%emt 0:00:25]} 9. Ne2 {[%emt 0:00:03]} h5 {[%emt 0:00:50]} 10. Bd2 {[%emt 0:09:33]} Nd7 {[%emt 0:01:01]} 11. O-O-O {[%emt 0:16:24]} Nf8 {[%emt 0:00:39]} 12. Nf4 {[%emt 0:04:06]} Bxf4 {[%emt 0:14:20]} 13. Bxf4 {[%emt 0:00:22]} Be6 {[%emt 0:01:19]} 14. Kb1 {[%emt 0:07:44]} b5 {[%emt 0:01:11]} 15. f3 {[%emt 0:04:40]} Qd5 {[%emt 0:03:32]} 16. b3 {[%emt 0:01:00]} a5 {[%emt 0:01:18]} 17. Rhg1 {[%emt 0:13:09]} a4 {[%emt 0:01:08]} 18. b4 {[%emt 0:00:28]} Ng6 {[%emt 0:08:28]} 19. Bc1 {[%emt 0:02:20]} Nh4 {[%emt 0:24:16]} 20. Rdf1 {[%emt 0:07:49]} Bf5 {[%emt 0:02:21]} 21. g4 {[%emt 0:01:01]} Bxd3 {[%emt 0:00:11]} 22. Qxd3 {[%emt 0:00:03]} Re6 23. gxh5 {[%emt 0:04:07]} Qxh5 {[%emt 0:02:41]} 24. Rg4 {[%emt 0:01:22]} Qf5 {[%emt 0:04:36]} 25. Qxf5 {[%emt 0:06:11]} Nxf5 {[%emt 0:00:10]} 26. Rf4 {[%emt 0:01:12]} g6 {[%emt 0:03:51]} 27. h4 {[%emt 0:01:23]} Ng3 {[%emt 0:01:36]} 28. Rf2 {[%emt 0:02:24]} Ne2 {[%emt 0:12:05]} 29. Rg4 {[%emt 0:00:07]} Nxc3+ {[%emt 0:00:22]} 30. Kc2 {[%emt 0:00:23]} Nd5 {[%emt 0:00:08]} 31. Bd2 {[%emt 0:00:37]} Kg7 {[%emt 0:00:17]} 32. h5 {[%emt 0:02:59]} Rh8 {[%emt 0:00:49]} 33. hxg6 {[%emt 0:00:31]} fxg6 {[%emt 0:00:05]} 34. Rg1 {[%emt 0:01:53]} Rh3 {[%emt 0:00:46]} 35. a3 {[%emt 0:00:10]} Kf7 {[%emt 0:00:35]} 36. Bc1 {[%emt 0:01:13]} g5 {[%emt 0:00:53]} 37. Bd2 {[%emt 0:00:19]} Rh4 {[%emt 0:00:57]} 38. Kd3 {[%emt 0:00:29]} Rd6 {[%emt 0:00:19]} 39. Rd1 Nb6 {[%emt 0:02:29]} 40. f4 {[%emt 0:00:00]} Nc4 {[%emt 0:00:00]} 41. Bc1 {[%emt 0:04:18]} gxf4 {[%emt 0:02:23]} 0-1

[Event "Moscow Open RSSU Cup 2019"]
[Site "Moscow"]
[Date "2019.01.27"]
[Round "2"]
[White "Mozharov, Mikhail"]
[Black "Anikonov, Dmitry"]
[Result "1-0"]
[ECO "A30"]
[WhiteElo "2549"]
[BlackElo "2371"]
[Annotator "RC"]
[PlyCount "173"]
[EventDate "2019.01.26"]
[EventType "swiss"]
[EventCountry "RUS"]
[SourceTitle "playchess.com"]
[Source "ChessBase"]
[SourceQuality "1"]
[TimeControl "40/5400+30:1800+30"]

1. c4 {[%emt 0:01:48]} Nf6 {[%emt 0:02:12]} 2. Nf3 {[%emt 0:00:38]} c5 {[%emt 0:00:07]} 3. g3 {[%emt 0:00:08]} b6 {[%emt 0:00:22]} 4. Bg2 {[%emt 0:00:08]} Bb7 {[%emt 0:00:04]} 5. O-O {[%emt 0:00:20]} e6 {[%emt 0:00:03]} 6. Nc3 {[%emt 0:00:15]} Be7 {[%emt 0:00:15]} 7. d4 {[%emt 0:00:27]} cxd4 {[%emt 0:00:06]} 8. Qxd4 {[%emt 0:00:04]} O-O {[%emt 0:00:10]} 9. Rd1 {[%emt 0:00:18]} d6 {[%emt 0:05:47]} 10. Bg5 {[%emt 0:03:38]} Nc6 {[%emt 0:05:17]} 11. Qd2 Qb8 {[%emt 0:06:23]} 12. Rac1 {[%emt 0:07:19]} Rd8 {[%emt 0:02:46]} 13. e4 {[%emt 0:13:27]} a6 {[%emt 0:05:50]} 14. Qe2 {[%emt 0:00:55]} Ne5 {[%emt 0:02:06]} 15. Nd4 {[%emt 0:02:52]} h6 {[%emt 0:05:43]} 16. Bd2 {[%emt 0:03:31]} Qc7 {[%emt 0:02:24]} 17. b3 {[%emt 0:01:53]} Rac8 {[%emt 0:02:17]} 18. f4 {[%emt 0:02:36]} Ned7 19. f5 {[%emt 0:12:11]} e5 {[%emt 0:18:11]} 20. Nc2 {[%emt 0:00:07]} b5 {[%emt 0:07:32]} 21. cxb5 {[%emt 0:04:56]} axb5 {[%emt 0:00:05]} 22. Qxb5 {[%emt 0:03:58]} Qc5+ {[%emt 0:14:50]} 23. Ne3 {[%emt 0:15:04]} Qxb5 {[%emt 0:01:02]} 24. Nxb5 {[%emt 0:02:04]} Nxe4 {[%emt 0:00:06]} 25. Rxc8 {[%emt 0:03:44]} Rxc8 {[%emt 0:01:09]} 26. Bb4 {[%emt 0:00:41]} Ndc5 {[%emt 0:08:24]} 27. Nc4 {[%emt 0:08:04]} d5 {[%emt 0:03:07]} 28. Nxe5 {[%emt 0:02:45]} Bg5 {[%emt 0:00:09]} 29. Bf3 {[%emt 0:02:59]} Be3+ {[%emt 0:00:51]} 30. Kf1 {[%emt 0:00:33]} Ra8 {[%emt 0:03:41]} 31. Ng4 {[%emt 0:05:38]} Bg5 {[%emt 0:00:31]} 32. Bxc5 {[%emt 0:00:18]} Nxc5 {[%emt 0:00:59]} 33. h4 {[%emt 0:01:21]} Be7 {[%emt 0:01:57]} 34. Nc3 {[%emt 0:01:20]} Ne4 {[%emt 0:00:50]} 35. Nxd5 {[%emt 0:00:32]} Bxd5 {[%emt 0:01:25]} 36. Rxd5 {[%emt 0:00:05]} Nxg3+ {[%emt 0:00:14]} 37. Kg2 {[%emt 0:00:33]} Nh5 {[%emt 0:00:20]} 38. Rd2 {[%emt 0:00:31]} Ra5 {[%emt 0:00:51]} 39. Be4 {[%emt 0:01:07]} Bxh4 {[%emt 0:00:22]} 40. Rc2 Nf6 {[%emt 0:00:00]} 41. Nxf6+ {[%emt 0:00:44]} Bxf6 {[%emt 0:03:43]} 42. a4 {[%emt 0:00:04]} g6 {[%emt 0:02:25]} 43. Rc8+ {[%emt 0:08:20]} Kg7 {[%emt 0:00:37]} 44. fxg6 {[%emt 0:05:30]} fxg6 {[%emt 0:00:14]} 45. Rc7+ {[%emt 0:00:05]} Kf8 {[%emt 0:01:19]} 46. Kf3 g5 {[%emt 0:01:11]} 47. Bg6 {[%emt 0:01:51]} Be7 {[%emt 0:00:41]} 48. Kg4 {[%emt 0:05:49]} Rd5 {[%emt 0:06:55]} 49. Be4 {[%emt 0:01:33]} Re5 {[%emt 0:00:54]} 50. Rc4 {[%emt 0:02:20]} Rc5 {[%emt 0:03:27]} 51. Rd4 {[%emt 0:00:26]} Ra5 {[%emt 0:02:21]} 52. Bc2 {[%emt 0:03:15]} Rc5 {[%emt 0:01:12]} 53. Bd3 {[%emt 0:00:30]} Bf6 {[%emt 0:01:52]} 54. Rd7 {[%emt 0:00:20]} Ke8 {[%emt 0:02:04]} 55. Rh7 {[%emt 0:00:38]} Bc3 {[%emt 0:00:26]} 56. Rxh6 {[%emt 0:00:36]} Kd7 {[%emt 0:01:01]} 57. Bf5+ {[%emt 0:00:58]} Kc7 {[%emt 0:01:31]} 58. Rh7+ {[%emt 0:00:04]} Kb6 {[%emt 0:00:07]} 59. Kxg5 {[%emt 0:00:05]} Rc7 {[%emt 0:00:38]} 60. Rh1 {[%emt 0:01:16]} Ka5 {[%emt 0:01:35]} 61. Be6 {[%emt 0:00:37]} Rc6 {[%emt 0:00:19]} 62. Kf5 {[%emt 0:00:24]} Kb4 {[%emt 0:01:02]} 63. Rh4+ {[%emt 0:00:50]} Ka5 {[%emt 0:00:20]} 64. Bd5 {[%emt 0:00:37]} Rf6+ {[%emt 0:01:22]} 65. Ke4 {[%emt 0:00:05]} Rg6 {[%emt 0:01:11]} 66. Bc4 {[%emt 0:01:17]} Kb6 {[%emt 0:00:56]} 67. Rh5 {[%emt 0:00:33]} Rg4+ {[%emt 0:00:25]} 68. Kf3 {[%emt 0:00:20]} Rg1 {[%emt 0:00:44]} 69. Rb5+ {[%emt 0:00:23]} Kc6 {[%emt 0:00:04]} 70. Bd5+ {[%emt 0:00:08]} Kd6 {[%emt 0:00:04]} 71. Ke4 {[%emt 0:01:44]} Rg4+ {[%emt 0:01:34]} 72. Kd3 {[%emt 0:00:44]} Be1 {[%emt 0:01:40]} 73. Be4 {[%emt 0:02:03]} Bf2 {[%emt 0:00:58]} 74. Rf5 {[%emt 0:00:41]} Be1 {[%emt 0:02:01]} 75. Rd5+ {[%emt 0:02:32]} Kc7 {[%emt 0:00:07]} 76. Rc5+ {[%emt 0:00:31]} Kb6 {[%emt 0:00:17]} 77. Rc1 {[%emt 0:00:55]} Bb4 {[%emt 0:00:51]} 78. Rf1 {[%emt 0:00:10]} Be7 {[%emt 0:01:37]} 79. Rf7 {[%emt 0:00:11]} Bd6 {[%emt 0:00:28]} 80. Rf6 {[%emt 0:00:47]} Kc7 {[%emt 0:00:31]} 81. Rf7+ {[%emt 0:01:08]} Kb6 {[%emt 0:00:09]} 82. Rf6 {[%emt 0:00:05]} Kc7 {[%emt 0:00:10]} 83. a5 {[%emt 0:00:17]} Rg5 {[%emt 0:01:11]} 84. Rf7+ {[%emt 0:00:06]} Kb8 {[%emt 0:00:28]} 85. a6 {[%emt 0:00:14]} Ra5 {[%emt 0:00:08]} 86. Rb7+ {[%emt 0:00:29]} Kc8 {[%emt 0:00:03]} 87. a7 {[%emt 0:00:33]} 1-0

[Event "Moscow Open RSSU Cup 2019"]
[Site "Moscow"]
[Date "2019.01.27"]
[Round "2"]
[White "Korneev, Oleg"]
[Black "Khayrullin, Denis"]
[Result "1-0"]
[ECO "B90"]
[WhiteElo "2545"]
[BlackElo "2362"]
[Annotator "RC"]
[PlyCount "100"]
[EventDate "2019.01.26"]
[EventType "swiss"]
[EventCountry "RUS"]
[SourceTitle "playchess.com"]
[Source "ChessBase"]
[SourceQuality "1"]
[TimeControl "40/5400+30:1800+30"]

1. e4 {[%emt 0:07:23]} c5 {[%emt 0:01:42]} 2. Nf3 {[%emt 0:00:05]} d6 {[%emt 0:00:19]} 3. d4 {[%emt 0:00:03]} cxd4 {[%emt 0:00:07]} 4. Nxd4 {[%emt 0:00:02]} Nf6 {[%emt 0:00:06]} 5. Nc3 {[%emt 0:00:01]} a6 {[%emt 0:00:08]} 6. Be3 {[%emt 0:00:04]} e5 {[%emt 0:01:10]} 7. Nf3 {[%emt 0:02:10]} Be7 {[%emt 0:00:53]} 8. Bc4 {[%emt 0:04:28]} O-O {[%emt 0:00:21]} 9. O-O {[%emt 0:00:03]} Be6 {[%emt 0:00:18]} 10. Qe2 {[%emt 0:00:10]} Nc6 {[%emt 0:03:57]} 11. Rfd1 {[%emt 0:00:46]} Qc7 12. Bb3 {[%emt 0:14:58]} Na5 {[%emt 0:01:30]} 13. Bg5 {[%emt 0:03:31]} Nxb3 {[%emt 0:01:52]} 14. axb3 {[%emt 0:00:41]} Nh5 {[%emt 0:01:18]} 15. Nxe5 {[%emt 0:11:10]} Bxg5 {[%emt 0:02:33]} 16. Qxh5 {[%emt 0:00:08]} Bf6 {[%emt 0:00:18]} 17. Nf3 {[%emt 0:00:23]} Bxc3 {[%emt 0:07:40]} 18. bxc3 {[%emt 0:00:06]} Qxc3 {[%emt 0:00:30]} 19. Nd4 {[%emt 0:00:02]} Rfc8 {[%emt 0:10:10]} 20. Qa5 {[%emt 0:02:55]} Qxa5 {[%emt 0:09:18]} 21. Rxa5 {[%emt 0:02:36]} Kf8 22. f3 {[%emt 0:21:44]} Ke7 {[%emt 0:06:06]} 23. c4 {[%emt 0:00:45]} b6 {[%emt 0:17:10]} 24. Ra2 {[%emt 0:01:12]} b5 {[%emt 0:03:02]} 25. cxb5 {[%emt 0:00:29]} axb5 {[%emt 0:00:16]} 26. Rda1 {[%emt 0:06:09]} Rxa2 {[%emt 0:22:39]} 27. Rxa2 {[%emt 0:00:10]} Rc1+ {[%emt 0:00:48]} 28. Kf2 {[%emt 0:00:23]} Rb1 {[%emt 0:00:46]} 29. Ra5 {[%emt 0:12:04]} Bd7 {[%emt 0:03:46]} 30. Ra7 {[%emt 0:00:04]} Rb2+ {[%emt 0:01:35]} 31. Kg3 {[%emt 0:00:02]} g6 {[%emt 0:01:52]} 32. Rb7 {[%emt 0:03:30]} h5 {[%emt 0:02:35]} 33. h4 {[%emt 0:00:07]} Kd8 {[%emt 0:00:34]} 34. Nxb5 {[%emt 0:00:53]} Bxb5 {[%emt 0:00:37]} 35. Rxb5 {[%emt 0:00:10]} Kc7 {[%emt 0:00:37]} 36. Kh3 {[%emt 0:00:18]} Rb1 {[%emt 0:00:09]} 37. Kh2 {[%emt 0:01:15]} Rb2 {[%emt 0:00:26]} 38. Kg3 {[%emt 0:00:01]} f6 {[%emt 0:00:26]} 39. Rb4 {[%emt 0:00:16]} Kd7 {[%emt 0:00:41]} 40. Rb7+ {[%emt 0:00:00]} Ke6 41. Rg7 {[%emt 0:10:03]} Rxb3 {[%emt 0:14:01]} 42. Rxg6 {[%emt 0:00:06]} Rb5 {[%emt 0:00:25]} 43. Rh6 {[%emt 0:00:03]} Re5 {[%emt 0:01:10]} 44. Rh8 {[%emt 0:01:20]} Kf7 {[%emt 0:02:48]} 45. Rd8 {[%emt 0:01:08]} Ke7 {[%emt 0:00:20]} 46. Ra8 {[%emt 0:00:02]} f5 {[%emt 0:00:25]} 47. exf5 {[%emt 0:00:42]} Rxf5 {[%emt 0:00:18]} 48. Rg8 {[%emt 0:00:22]} Ke6 {[%emt 0:12:43]} 49. Rg6+ {[%emt 0:04:24]} Ke5 {[%emt 0:01:23]} 50. Rg5 Kd5 1-0